fUST/lending_fUST_20260530
["ID","MTS","AMOUNT","RATE_DAILY","PERIOD"]
[423388124,1780074651000,-542.05,0.00010958,2]
[423388115,1780074651000,-500.0,0.00010958,2]
[423388117,1780074651000,-500.0,0.00010958,2]
[423388120,1780074651000,-500.0,0.00010958,2]
[423388123,1780074651000,-500.0,0.00010958,2]
[423388116,1780074651000,-1348.75,0.00010958,2]
[423388119,1780074651000,-1670.88,0.00010958,2]
[423388096,1780074651000,-500.0,0.00010684,2]
[423388107,1780074651000,-173.4656929,0.00010791,2]
[423388092,1780074651000,-500.0,0.00010684,2]
[423388066,1780074651000,-500.0,0.0001041,2]
[423388090,1780074651000,-1028.27,0.00010684,2]
[423388065,1780074651000,-1129.09,0.0001041,2]
[423388073,1780074651000,-1348.75,0.00010684,2]
[423388121,1780074651000,-603.91,0.00010958,2]
[423388067,1780074651000,-500.0,0.00010684,2]
[423388070,1780074651000,-500.0,0.00010684,2]
[423388068,1780074651000,-500.0,0.00010684,2]
[423388071,1780074651000,-944.99,0.00010684,2]
[423388072,1780074651000,-500.0,0.00010684,2]
[423388069,1780074651000,-500.0,0.00010684,2]
[423388075,1780074651000,-552.58,0.00010684,2]
[423388086,1780074651000,-500.0,0.00010684,2]
[423388085,1780074651000,-559.57,0.00010684,2]
[423388074,1780074651000,-500.0,0.00010684,2]
[423388094,1780074651000,-500.0,0.00010684,2]
[423388076,1780074651000,-1670.88,0.00010684,2]
[423388080,1780074651000,-500.0,0.00010684,2]
[423388084,1780074651000,-534.45,0.00010684,2]
[423388078,1780074651000,-603.91,0.00010684,2]
[423388083,1780074651000,-572.53,0.00010684,2]
[423388079,1780074651000,-504.09,0.00010684,2]
[423388081,1780074651000,-542.05,0.00010684,2]
[423388082,1780074651000,-526.32,0.00010684,2]
[423388088,1780074651000,-603.85,0.00010684,2]
[423388098,1780074651000,-3745.47,0.00010684,2]
[423388099,1780074651000,-500.0,0.00010684,2]
[423388087,1780074651000,-500.0,0.00010684,2]
[423388089,1780074651000,-1567.21,0.00010684,2]
[423388091,1780074651000,-500.0,0.00010684,2]
[423388077,1780074651000,-500.0,0.00010684,2]
[423388122,1780074651000,-504.09,0.00010958,2]
[423388182,1780074651000,-500.0,0.00011232,2]
[423388138,1780074651000,-285.30003306,0.00010958,2]
[423388158,1780074651000,-500.0,0.00011232,2]
[423388162,1780074651000,-1670.88,0.00011232,2]
[423388160,1780074651000,-628.44,0.00011232,2]
[423388163,1780074651000,-500.0,0.00011232,2]
[423388159,1780074651000,-1348.75,0.00011232,2]
[423388161,1780074651000,-552.58,0.00011232,2]
[423388169,1780074651000,-534.45,0.00011232,2]
[423388167,1780074651000,-542.05,0.00011232,2]
[423388170,1780074651000,-559.57,0.00011232,2]
[423388168,1780074651000,-572.53,0.00011232,2]
[423388173,1780074651000,-603.85,0.00011232,2]
[423388171,1780074651000,-500.0,0.00011232,2]
[423388172,1780074651000,-500.0,0.00011232,2]
[423388155,1780074651000,-152.0,0.00011079,2]
[423388177,1780074651000,-390.25,0.00011232,2]
[423388175,1780074651000,-1028.27,0.00011232,2]
[423388176,1780074651000,-500.0,0.00011232,2]
[423388179,1780074651000,-1026.4926,0.00011232,2]
[423388178,1780074651000,-500.0,0.00011232,2]
[423388184,1780074651000,-219.68,0.00011232,2]
[423388187,1780074651000,-1129.09,0.00011232,2]
[423388180,1780074651000,-591.15,0.00011232,2]
[423388183,1780074651000,-1807.05,0.00011232,2]
[423388185,1780074651000,-500.0,0.00011232,2]
[423388181,1780074651000,-3745.47,0.00011232,2]
[423388186,1780074651000,-500.0,0.00011232,2]
[423388128,1780074651000,-500.0,0.00010958,2]
[423388188,1780074651000,-500.0,0.00011232,2]
[423388174,1780074651000,-1567.21,0.00011232,2]
[423388165,1780074651000,-504.09,0.00011232,2]
[423388189,1780074651000,-500.0,0.00011506,2]
[423388153,1780074651000,-500.0,0.00010958,2]
[423388139,1780074651000,-591.15,0.00010958,2]
[423388157,1780074651000,-944.99,0.00011232,2]
[423388131,1780074651000,-1567.21,0.00010958,2]
[423388129,1780074651000,-500.0,0.00010958,2]
[423388137,1780074651000,-1026.4926,0.00010958,2]
[423388130,1780074651000,-603.85,0.00010958,2]
[423388133,1780074651000,-500.0,0.00010958,2]
[423388136,1780074651000,-500.0,0.00010958,2]
[423388132,1780074651000,-1028.27,0.00010958,2]
[423388135,1780074651000,-603.64,0.00010958,2]
[423388134,1780074651000,-500.0,0.00010958,2]
[423388140,1780074651000,-3745.47,0.00010958,2]
[423388143,1780074651000,-500.0,0.00010958,2]
[423388142,1780074651000,-1807.05,0.00010958,2]
[423388127,1780074651000,-559.57,0.00010958,2]
[423388146,1780074651000,-500.0,0.00010958,5]
[423388144,1780074651000,-500.0,0.00010958,3]
[423388164,1780074651000,-603.91,0.00011232,2]
[423388154,1780074651000,-9074.9670477,0.00010959,2]
[423388166,1780074651000,-500.0,0.00011232,2]
[423388156,1780074651000,-500.0,0.00011232,2]
[423388151,1780074651000,-500.0,0.00010958,2]
[423388152,1780074651000,-1129.09,0.00010958,2]
[423388149,1780074651000,-500.0,0.00010958,2]
[423388147,1780074651000,-500.0,0.00010958,6]
[423388141,1780074651000,-500.0,0.00010958,2]
[423388148,1780074651000,-500.0,0.00010958,2]
[423388145,1780074651000,-500.0,0.00010958,4]
[423388150,1780074651000,-575.32,0.00010958,2]
[423388228,1780074652000,-500.0,0.0001178,2]
[423388230,1780074652000,-572.53,0.0001178,2]
[423388237,1780074652000,-1028.27,0.0001178,2]
[423388231,1780074652000,-534.45,0.0001178,2]
[423388217,1780074652000,-1129.09,0.00011506,2]
[423388226,1780074652000,-603.91,0.0001178,2]
[423388215,1780074652000,-500.0,0.00011506,2]
[423388218,1780074652000,-500.0,0.00011506,2]
[423388233,1780074652000,-500.0,0.0001178,2]
[423388219,1780074652000,-643.5,0.0001178,2]
[423388238,1780074652000,-500.0,0.0001178,2]
[423388229,1780074652000,-542.05,0.0001178,2]
[423388240,1780074652000,-1026.4926,0.0001178,2]
[423388236,1780074652000,-1567.21,0.0001178,2]
[423388235,1780074652000,-603.85,0.0001178,2]
[423388232,1780074652000,-559.57,0.0001178,2]
[423388250,1780074652000,-240.42463966,0.00012,2]
[423388247,1780074652000,-1129.09,0.0001178,2]
[423388243,1780074652000,-500.0,0.0001178,2]
[423388239,1780074652000,-500.0,0.0001178,2]
[423388241,1780074652000,-591.15,0.0001178,2]
[423388244,1780074652000,-1807.05,0.0001178,2]
[423388242,1780074652000,-3745.47,0.0001178,2]
[423388246,1780074652000,-500.0,0.0001178,2]
[423388214,1780074652000,-1807.05,0.00011506,2]
[423388249,1780074652000,-1152.0,0.0001191,2]
[423388234,1780074652000,-500.0,0.0001178,2]
[423388220,1780074652000,-944.99,0.0001178,2]
[423388206,1780074652000,-1567.21,0.00011506,2]
[423388222,1780074652000,-1348.75,0.0001178,2]
[423388245,1780074652000,-500.0,0.0001178,2]
[423388191,1780074652000,-500.0,0.00011506,2]
[423388190,1780074652000,-944.99,0.00011506,2]
[423388192,1780074652000,-1348.75,0.00011506,2]
[423388193,1780074652000,-552.58,0.00011506,2]
[423388194,1780074652000,-1670.88,0.00011506,2]
[423388195,1780074652000,-500.0,0.00011506,2]
[423388198,1780074652000,-500.0,0.00011506,2]
[423388196,1780074652000,-603.91,0.00011506,2]
[423388197,1780074652000,-504.09,0.00011506,2]
[423388199,1780074652000,-542.05,0.00011506,2]
[423388203,1780074652000,-500.0,0.00011506,2]
[423388204,1780074652000,-500.0,0.00011506,2]
[423388216,1780074652000,-500.0,0.00011506,2]
[423388201,1780074652000,-534.45,0.00011506,2]
[423388205,1780074652000,-603.85,0.00011506,2]
[423388210,1780074652000,-1026.4926,0.00011506,2]
[423388211,1780074652000,-591.15,0.00011506,2]
[423388207,1780074652000,-1028.27,0.00011506,2]
[423388209,1780074652000,-500.0,0.00011506,2]
[423388200,1780074652000,-572.53,0.00011506,2]
[423388208,1780074652000,-500.0,0.00011506,2]
[423388213,1780074652000,-500.0,0.00011506,2]
[423388212,1780074652000,-3745.47,0.00011506,2]
[423388225,1780074652000,-500.0,0.0001178,2]
[423388223,1780074652000,-552.58,0.0001178,2]
[423388224,1780074652000,-1670.88,0.0001178,2]
[423388221,1780074652000,-530.56,0.0001178,2]
[423388202,1780074652000,-559.57,0.00011506,2]
[423388248,1780074652000,-500.0,0.0001178,2]
[423388227,1780074652000,-504.09,0.0001178,2]
[423388253,1780074652000,-151.0,0.00012054,2]
[423388286,1780074652000,-1670.88,0.00012328,2]
[423388287,1780074652000,-324.72,0.00012328,2]
[423388282,1780074652000,-227.55964742,0.00012135,2]
[423388285,1780074652000,-552.58,0.00012328,2]
[423388290,1780074652000,-500.0,0.00012328,2]
[423388300,1780074652000,-500.0,0.00012328,2]
[423388289,1780074652000,-504.09,0.00012328,2]
[423388293,1780074652000,-534.45,0.00012328,2]
[423388301,1780074652000,-500.0,0.00012328,2]
[423388292,1780074652000,-572.53,0.00012328,2]
[423388291,1780074652000,-542.05,0.00012328,2]
[423388302,1780074652000,-1026.4926,0.00012328,2]
[423388297,1780074652000,-603.85,0.00012328,2]
[423388298,1780074652000,-1567.21,0.00012328,2]
[423388296,1780074652000,-500.0,0.00012328,2]
[423388299,1780074652000,-1028.27,0.00012328,2]
[423388295,1780074652000,-500.0,0.00012328,2]
[423388304,1780074652000,-3745.47,0.00012328,2]
[423388303,1780074652000,-591.15,0.00012328,2]
[423388305,1780074652000,-500.0,0.00012328,2]
[423388309,1780074652000,-1129.09,0.00012328,2]
[423388306,1780074652000,-1807.05,0.00012328,2]
[423388310,1780074652000,-500.0,0.00012328,2]
[423388307,1780074652000,-500.0,0.00012328,2]
[423388308,1780074652000,-500.0,0.00012328,2]
[423388311,1780074652000,-944.99,0.00012602,2]
[423388251,1780074652000,-151.05,0.00012,2]
[423388283,1780074652000,-944.99,0.00012328,2]
[423388284,1780074652000,-1348.75,0.00012328,2]
[423388294,1780074652000,-559.57,0.00012328,2]
[423388288,1780074652000,-603.91,0.00012328,2]
[423388281,1780074652000,-500.0,0.00012054,2]
[423388255,1780074652000,-1348.75,0.00012054,2]
[423388254,1780074652000,-944.99,0.00012054,2]
[423388261,1780074652000,-500.0,0.00012054,2]
[423388257,1780074652000,-1670.88,0.00012054,2]
[423388256,1780074652000,-552.58,0.00012054,2]
[423388260,1780074652000,-504.09,0.00012054,2]
[423388259,1780074652000,-603.91,0.00012054,2]
[423388258,1780074652000,-500.0,0.00012054,2]
[423388263,1780074652000,-572.53,0.00012054,2]
[423388274,1780074652000,-591.15,0.00012054,2]
[423388262,1780074652000,-542.05,0.00012054,2]
[423388268,1780074652000,-603.85,0.00012054,2]
[423388267,1780074652000,-500.0,0.00012054,2]
[423388252,1780074652000,-151.03,0.00012,2]
[423388276,1780074652000,-500.0,0.00012054,2]
[423388278,1780074652000,-500.0,0.00012054,2]
[423388280,1780074652000,-1129.09,0.00012054,2]
[423388279,1780074652000,-500.0,0.00012054,2]
[423388270,1780074652000,-1028.27,0.00012054,2]
[423388275,1780074652000,-3745.47,0.00012054,2]
[423388265,1780074652000,-559.57,0.00012054,2]
[423388277,1780074652000,-1807.05,0.00012054,2]
[423388273,1780074652000,-1026.4926,0.00012054,2]
[423388266,1780074652000,-500.0,0.00012054,2]
[423388269,1780074652000,-1567.21,0.00012054,2]
[423388271,1780074652000,-500.0,0.00012054,2]
[423388264,1780074652000,-534.45,0.00012054,2]
[423388272,1780074652000,-500.0,0.00012054,2]
[423388350,1780074653000,-500.0,0.00012876,2]
[423388361,1780074653000,-500.0,0.00012876,2]
[423388352,1780074653000,-603.85,0.00012876,2]
[423388353,1780074653000,-1567.21,0.00012876,2]
[423388351,1780074653000,-500.0,0.00012876,2]
[423388346,1780074653000,-542.05,0.00012876,2]
[423388345,1780074653000,-303.44,0.00012876,2]
[423388343,1780074653000,-603.91,0.00012876,2]
[423388344,1780074653000,-504.09,0.00012876,2]
[423388347,1780074653000,-572.53,0.00012876,2]
[423388342,1780074653000,-1670.88,0.00012876,2]
[423388360,1780074653000,-1807.05,0.00012876,2]
[423388349,1780074653000,-559.57,0.00012876,2]
[423388355,1780074653000,-500.0,0.00012876,2]
[423388365,1780074653000,-1352.39212201,0.00013,2]
[423388362,1780074653000,-500.0,0.00012876,2]
[423388357,1780074653000,-1026.4926,0.00012876,2]
[423388358,1780074653000,-591.15,0.00012876,2]
[423388359,1780074653000,-3745.47,0.00012876,2]
[423388356,1780074653000,-500.0,0.00012876,2]
[423388363,1780074653000,-1129.09,0.00012876,2]
[423388366,1780074653000,-1352.39212201,0.000131,2]
[423388368,1780074653000,-944.99,0.0001315,2]
[423388367,1780074653000,-1613.0,0.00013101,2]
[423388364,1780074653000,-500.0,0.00012876,2]
[423388374,1780074653000,-542.05,0.0001315,2]
[423388375,1780074653000,-572.53,0.0001315,2]
[423388369,1780074653000,-1348.75,0.0001315,2]
[423388354,1780074653000,-1028.27,0.00012876,2]
[423388348,1780074653000,-534.45,0.00012876,2]
[423388313,1780074653000,-552.58,0.00012602,2]
[423388340,1780074653000,-1348.75,0.00012876,2]
[423388370,1780074653000,-552.58,0.0001315,2]
[423388314,1780074653000,-1670.88,0.00012602,2]
[423388315,1780074653000,-603.91,0.00012602,2]
[423388316,1780074653000,-504.09,0.00012602,2]
[423388320,1780074653000,-534.45,0.00012602,2]
[423388317,1780074653000,-500.0,0.00012602,2]
[423388321,1780074653000,-559.57,0.00012602,2]
[423388319,1780074653000,-572.53,0.00012602,2]
[423388318,1780074653000,-542.05,0.00012602,2]
[423388312,1780074653000,-1348.75,0.00012602,2]
[423388322,1780074653000,-500.0,0.00012602,2]
[423388323,1780074653000,-500.0,0.00012602,2]
[423388325,1780074653000,-1567.21,0.00012602,2]
[423388341,1780074653000,-552.58,0.00012876,2]
[423388335,1780074653000,-500.0,0.00012602,2]
[423388324,1780074653000,-603.85,0.00012602,2]
[423388327,1780074653000,-500.0,0.00012602,2]
[423388334,1780074653000,-500.0,0.00012602,2]
[423388332,1780074653000,-441.64,0.00012602,2]
[423388333,1780074653000,-1807.05,0.00012602,2]
[423388328,1780074653000,-500.0,0.00012602,2]
[423388329,1780074653000,-1026.4926,0.00012602,2]
[423388326,1780074653000,-1028.27,0.00012602,2]
[423388331,1780074653000,-3745.47,0.00012602,2]
[423388330,1780074653000,-591.15,0.00012602,2]
[423388338,1780074653000,-312.23824721,0.00012735,2]
[423388337,1780074653000,-500.0,0.00012602,2]
[423388339,1780074653000,-944.99,0.00012876,2]
[423388336,1780074653000,-1129.09,0.00012602,2]
[423388371,1780074653000,-1670.88,0.0001315,2]
[423388381,1780074653000,-1567.21,0.0001315,2]
[423388372,1780074653000,-603.91,0.0001315,2]
[423388404,1780074653000,-559.57,0.00013424,2]
[423388410,1780074653000,-500.0,0.00013424,2]
[423388409,1780074653000,-1028.27,0.00013424,2]
[423388408,1780074653000,-1567.21,0.00013424,2]
[423388411,1780074653000,-1026.4926,0.00013424,2]
[423388407,1780074653000,-603.85,0.00013424,2]
[423388412,1780074653000,-591.15,0.00013424,2]
[423388416,1780074653000,-1129.09,0.00013424,2]
[423388418,1780074653000,-1352.39212201,0.000135,2]
[423388420,1780074653000,-1348.75,0.00013698,2]
[423388417,1780074653000,-500.0,0.00013424,2]
[423388424,1780074653000,-504.09,0.00013698,2]
[423388423,1780074653000,-603.91,0.00013698,2]
[423388406,1780074653000,-500.0,0.00013424,2]
[423388419,1780074653000,-944.99,0.00013698,2]
[423388422,1780074653000,-1670.88,0.00013698,2]
[423388425,1780074653000,-542.05,0.00013698,2]
[423388427,1780074653000,-534.45,0.00013698,2]
[423388373,1780074653000,-504.09,0.0001315,2]
[423388436,1780074653000,-591.15,0.00013698,2]
[423388430,1780074653000,-500.0,0.00013698,2]
[423388434,1780074653000,-500.0,0.00013698,2]
[423388431,1780074653000,-603.85,0.00013698,2]
[423388429,1780074653000,-500.0,0.00013698,2]
[423388433,1780074653000,-1028.27,0.00013698,2]
[423388435,1780074653000,-1026.4926,0.00013698,2]
[423388432,1780074653000,-1567.21,0.00013698,2]
[423388428,1780074653000,-559.57,0.00013698,2]
[423388421,1780074653000,-552.58,0.00013698,2]
[423388402,1780074653000,-572.53,0.00013424,2]
[423388426,1780074653000,-572.53,0.00013698,2]
[423388413,1780074653000,-3745.47,0.00013424,2]
[423388377,1780074653000,-559.57,0.0001315,2]
[423388405,1780074653000,-500.0,0.00013424,2]
[423388387,1780074653000,-3745.47,0.0001315,2]
[423388388,1780074653000,-1807.05,0.0001315,2]
[423388376,1780074653000,-534.45,0.0001315,2]
[423388378,1780074653000,-500.0,0.0001315,2]
[423388385,1780074653000,-1026.4926,0.0001315,2]
[423388382,1780074653000,-1028.27,0.0001315,2]
[423388383,1780074653000,-500.0,0.0001315,2]
[423388380,1780074653000,-603.85,0.0001315,2]
[423388386,1780074653000,-591.15,0.0001315,2]
[423388384,1780074653000,-264.2,0.0001315,2]
[423388392,1780074653000,-151.05,0.000132,2]
[423388389,1780074653000,-500.0,0.0001315,2]
[423388379,1780074653000,-500.0,0.0001315,2]
[423388390,1780074653000,-1129.09,0.0001315,2]
[423388414,1780074653000,-1807.05,0.00013424,2]
[423388391,1780074653000,-500.0,0.0001315,2]
[423388403,1780074653000,-534.45,0.00013424,2]
[423388397,1780074653000,-552.58,0.00013424,2]
[423388395,1780074653000,-944.99,0.00013424,2]
[423388415,1780074653000,-500.0,0.00013424,2]
[423388401,1780074653000,-542.05,0.00013424,2]
[423388398,1780074653000,-1670.88,0.00013424,2]
[423388400,1780074653000,-504.09,0.00013424,2]
[423388396,1780074653000,-1348.75,0.00013424,2]
[423388399,1780074653000,-603.91,0.00013424,2]
[423388394,1780074653000,-1352.39212201,0.000134,2]
[423388393,1780074653000,-1352.39212201,0.000133,2]
[423388459,1780074654000,-190.690042,0.00013699,2]
[423388468,1780074654000,-727.106422,0.00013699,2]
[423388462,1780074654000,-190.690042,0.00013699,2]
[423388463,1780074654000,-190.690042,0.00013699,2]
[423388461,1780074654000,-190.690042,0.00013699,2]
[423388464,1780074654000,-190.690042,0.00013699,2]
[423388471,1780074654000,-727.106422,0.00013699,2]
[423388467,1780074654000,-727.106422,0.00013699,2]
[423388472,1780074654000,-727.106422,0.00013699,2]
[423388474,1780074654000,-727.106422,0.00013699,2]
[423388470,1780074654000,-727.106422,0.00013699,2]
[423388466,1780074654000,-151.0,0.00013699,2]
[423388465,1780074654000,-151.0,0.00013699,2]
[423388482,1780074654000,-727.106422,0.00013699,2]
[423388475,1780074654000,-727.106422,0.00013699,2]
[423388484,1780074654000,-727.106422,0.00013699,2]
[423388483,1780074654000,-727.106422,0.00013699,2]
[423388456,1780074654000,-190.690042,0.00013699,2]
[423388476,1780074654000,-727.106422,0.00013699,2]
[423388469,1780074654000,-727.106422,0.00013699,2]
[423388455,1780074654000,-190.690042,0.00013699,2]
[423388443,1780074654000,-151.0,0.00013699,2]
[423388458,1780074654000,-190.690042,0.00013699,2]
[423388473,1780074654000,-727.106422,0.00013699,2]
[423388438,1780074654000,-1807.05,0.00013698,2]
[423388448,1780074654000,-190.690042,0.00013699,2]
[423388439,1780074654000,-500.0,0.00013698,2]
[423388441,1780074654000,-521.63,0.00013698,2]
[423388437,1780074654000,-3745.47,0.00013698,2]
[423388442,1780074654000,-151.0,0.00013699,2]
[423388440,1780074654000,-1129.09,0.00013698,2]
[423388445,1780074654000,-190.690042,0.00013699,2]
[423388444,1780074654000,-268.790054,0.00013699,2]
[423388446,1780074654000,-190.690042,0.00013699,2]
[423388447,1780074654000,-190.690042,0.00013699,2]
[423388449,1780074654000,-190.690042,0.00013699,2]
[423388452,1780074654000,-190.690042,0.00013699,2]
[423388451,1780074654000,-190.690042,0.00013699,2]
[423388453,1780074654000,-190.690042,0.00013699,2]
[423388454,1780074654000,-190.690042,0.00013699,2]
[423388450,1780074654000,-190.690042,0.00013699,2]
[423388457,1780074654000,-190.690042,0.00013699,2]
[423388460,1780074654000,-190.690042,0.00013699,2]
[423388485,1780074654000,-727.106422,0.00013699,2]
[423388507,1780074654000,-327.892484,0.00013699,2]
[423388477,1780074654000,-727.106422,0.00013699,2]
[423388509,1780074654000,-327.892484,0.00013699,2]
[423388510,1780074654000,-327.892484,0.00013699,2]
[423388512,1780074654000,-327.892484,0.00013699,2]
[423388513,1780074654000,-327.892494,0.00013699,2]
[423388511,1780074654000,-327.892484,0.00013699,2]
[423388508,1780074654000,-327.892484,0.00013699,2]
[423388514,1780074654000,-596.998347,0.00013699,2]
[423388519,1780074654000,-596.998347,0.00013699,2]
[423388517,1780074654000,-596.998347,0.00013699,2]
[423388516,1780074654000,-596.998347,0.00013699,2]
[423388515,1780074654000,-596.998347,0.00013699,2]
[423388520,1780074654000,-596.998347,0.00013699,2]
[423388522,1780074654000,-596.998347,0.00013699,2]
[423388521,1780074654000,-596.998347,0.00013699,2]
[423388525,1780074654000,-596.998347,0.00013699,2]
[423388523,1780074654000,-596.998347,0.00013699,2]
[423388526,1780074654000,-596.998347,0.00013699,2]
[423388524,1780074654000,-596.998347,0.00013699,2]
[423388481,1780074654000,-727.106422,0.00013699,2]
[423388505,1780074654000,-327.892484,0.00013699,2]
[423388503,1780074654000,-327.892484,0.00013699,2]
[423388518,1780074654000,-596.998347,0.00013699,2]
[423388506,1780074654000,-327.892484,0.00013699,2]
[423388478,1780074654000,-727.106422,0.00013699,2]
[423388504,1780074654000,-327.892484,0.00013699,2]
[423388479,1780074654000,-727.106422,0.00013699,2]
[423388480,1780074654000,-727.106422,0.00013699,2]
[423388486,1780074654000,-727.106431,0.00013699,2]
[423388487,1780074654000,-1786.769531,0.00013699,2]
[423388490,1780074654000,-259.930067,0.00013699,2]
[423388489,1780074654000,-151.0,0.00013699,2]
[423388492,1780074654000,-184.150761,0.00013699,2]
[423388491,1780074654000,-151.0,0.00013699,2]
[423388488,1780074654000,-151.0,0.00013699,2]
[423388493,1780074654000,-1000.0,0.00013699,2]
[423388502,1780074654000,-327.892484,0.00013699,2]
[423388499,1780074654000,-327.892484,0.00013699,2]
[423388500,1780074654000,-327.892484,0.00013699,2]
[423388497,1780074654000,-327.892484,0.00013699,2]
[423388501,1780074654000,-327.892484,0.00013699,2]
[423388495,1780074654000,-327.892484,0.00013699,2]
[423388496,1780074654000,-327.892484,0.00013699,2]
[423388494,1780074654000,-327.892484,0.00013699,2]
[423388498,1780074654000,-327.892484,0.00013699,2]
[423388559,1780074655000,-151.0,0.00014093,2]
[423388556,1780074655000,-3745.47,0.00013972,2]
[423388549,1780074655000,-500.0,0.00013972,2]
[423388558,1780074655000,-1129.09,0.00013972,2]
[423388566,1780074655000,-1348.75,0.00014246,2]
[423388562,1780074655000,-162.380719,0.00014093,2]
[423388568,1780074655000,-1670.88,0.00014246,2]
[423388557,1780074655000,-1807.05,0.00013972,2]
[423388560,1780074655000,-537.6845,0.00014093,2]
[423388567,1780074655000,-552.58,0.00014246,2]
[423388564,1780074655000,-257.67783604,0.00014135,2]
[423388579,1780074655000,-404.26,0.00014246,2]
[423388561,1780074655000,-500.0,0.00014093,2]
[423388563,1780074655000,-151.0,0.00014093,2]
[423388570,1780074655000,-504.09,0.00014246,2]
[423388580,1780074655000,-1026.4926,0.00014246,2]
[423388582,1780074655000,-3745.47,0.00014246,2]
[423388581,1780074655000,-591.15,0.00014246,2]
[423388574,1780074655000,-559.57,0.00014246,2]
[423388575,1780074655000,-500.0,0.00014246,2]
[423388569,1780074655000,-603.91,0.00014246,2]
[423388548,1780074655000,-559.57,0.00013972,2]
[423388565,1780074655000,-944.99,0.00014246,2]
[423388550,1780074655000,-603.85,0.00013972,2]
[423388531,1780074655000,-596.998347,0.00013699,2]
[423388552,1780074655000,-1028.27,0.00013972,2]
[423388528,1780074655000,-596.998347,0.00013699,2]
[423388527,1780074655000,-596.998347,0.00013699,2]
[423388529,1780074655000,-596.998347,0.00013699,2]
[423388533,1780074655000,-596.99835,0.00013699,2]
[423388576,1780074655000,-603.85,0.00014246,2]
[423388532,1780074655000,-596.998347,0.00013699,2]
[423388535,1780074655000,-555.09021727,0.00013706,2]
[423388534,1780074655000,-151.0,0.00013699,2]
[423388541,1780074655000,-552.58,0.00013972,2]
[423388540,1780074655000,-1348.75,0.00013972,2]
[423388539,1780074655000,-944.99,0.00013972,2]
[423388547,1780074655000,-534.45,0.00013972,2]
[423388530,1780074655000,-596.998347,0.00013699,2]
[423388537,1780074655000,-151.0,0.00013874,2]
[423388538,1780074655000,-179.1668731,0.00013874,2]
[423388555,1780074655000,-591.15,0.00013972,2]
[423388554,1780074655000,-1026.4926,0.00013972,2]
[423388543,1780074655000,-603.91,0.00013972,2]
[423388542,1780074655000,-1670.88,0.00013972,2]
[423388544,1780074655000,-504.09,0.00013972,2]
[423388553,1780074655000,-500.0,0.00013972,2]
[423388545,1780074655000,-542.05,0.00013972,2]
[423388551,1780074655000,-1567.21,0.00013972,2]
[423388546,1780074655000,-572.53,0.00013972,2]
[423388536,1780074655000,-151.0,0.00013874,2]
[423388577,1780074655000,-1567.21,0.00014246,2]
[423388588,1780074655000,-945.22,0.0001452,2]
[423388571,1780074655000,-542.05,0.00014246,2]
[423388609,1780074655000,-500.0,0.00014641,2]
[423388610,1780074655000,-227.85261188,0.0001469,5]
[423388612,1780074655000,-312.22243,0.00014847,2]
[423388613,1780074655000,-432.58548747,0.000149,2]